bitfinex/quotes_SOLUSD_20250527
["timestamp","ask_amount","ask_price","bid_price","bid_amount"]
[1748380603122,19.65739959,178.05,178.01,107.64964886]
[1748380603322,5.61639988,178.05,178.01,121.27072527]
[1748380603619,5.61639988,178.05,178.03,32.27072527]
[1748380604003,8.94,178.07,178.03,32.27072527]
[1748380604004,14.55605173,178.07,178.05,18.64964886]
[1748380604336,14.55605173,178.07,178.06,32.27072527]
[1748380604835,14.03686898,178.11,178.07,18.64964886]
[1748380605125,14.03686898,178.11,178.07,121.27072527]
[1748380605629,5.61482313,178.1,178.07,107.64964886]
[1748380608726,5.61482313,178.1,178.07,18.64964886]
[1748380608921,5.61482313,178.1,178.06,13.62107641]
[1748380609247,5.61482313,178.1,178.05,32.27072527]
[1748380609431,13.62107641,178.09,178.05,18.64964886]
[1748380612421,5.61545372,178.08,178.05,18.64964886]
[1748380612935,5.61545372,178.08,178.03,34.44]
[1748380612936,13.62107641,178.06,178.03,18.64964886]
[1748380613120,13.62107641,178.05,178.03,18.64964886]
[1748380614637,5.61671534,178.04,178.03,18.64964886]
[1748380615940,21.28553717,178.05,178.03,18.64964886]
[1748380617020,5.61671534,178.04,178.03,18.64964886]
[1748380619023,5.61576907,178.07,178.03,18.64964886]
[1748380620422,19.65519176,178.07,178.03,18.64964886]
[1748380623315,21.28553717,178.06,178.03,18.64964886]
[1748380623509,21.28553717,178.04,178.01,107.64964886]
[1748380623725,21.28553717,178.05,178.01,107.64964886]
[1748380624313,21.28553717,178.06,178.01,107.64964886]
[1748380625633,5.61639988,178.05,178.01,107.64964886]
[1748380626839,5.61639988,178.05,178.04,18.64964886]
[1748380627142,5.61639988,178.05,178.04,39.93518603]
[1748380627816,5.61545372,178.08,178.05,18.64964886]
[1748380629531,5.61545372,178.08,178.05,107.64964886]
[1748380635340,5.61545372,178.08,178.05,18.64964886]
[1748380636948,26.90099089,178.08,178.05,18.64964886]
[1748380637330,26.90099089,178.08,178.04,89.0]
[1748380637331,21.28553717,178.06,178.04,89.0]
[1748380637538,21.28553717,178.05,178.04,89.0]
[1748380637945,13.62159945,178.05,178.04,89.0]
[1748380638549,13.62159945,178.05,178.01,18.64964886]
[1748380638727,13.62159945,178.02,177.97,44.64964886]
[1748380639049,13.62159945,178.02,177.97,66.67124831]
[1748380639429,13.62159945,178.03,177.97,66.67124831]
[1748380639832,82.13403715,178.07,177.99,18.64964886]
[1748380640142,21.28979096,178.03,177.99,18.64964886]
[1748380640956,5.61734636,178.02,177.99,18.64964886]
[1748380643040,5.61734636,178.02,177.99,39.93943982]
[1748380644270,5.61703083,178.03,177.99,39.93943982]
[1748380645853,40.94939888,178.03,177.99,18.64964886]
[1748380650161,40.94939888,178.03,177.99,107.64964886]
[1748380652657,40.94939888,178.03,177.99,89.0]
[1748380652967,21.28979096,178.02,177.98,6.2486]
[1748380654370,19.65960792,178.03,177.98,18.64964886]
[1748380654371,21.28979096,178.01,177.98,18.64964886]
[1748380654570,5.61797752,178.0,177.98,18.64964886]
[1748380656259,5.61797752,178.0,177.96,55.59905559]
[1748380656464,26.90776848,178.0,177.97,18.64964886]
[1748380656654,5.61797752,178.0,177.97,18.64964886]
[1748380657759,19.66292134,178.0,177.97,18.64964886]
[1748380658157,19.66292134,178.0,177.97,39.93943982]
[1748380658359,19.66292134,178.0,177.98,21.28979096]
[1748380658360,5.61797752,178.0,177.98,21.28979096]
[1748380658776,5.61797752,178.0,177.99,18.64964886]
[1748380658970,5.61734636,178.02,177.99,39.93943982]
[1748380663174,5.61734636,178.02,177.99,18.64964886]
[1748380663595,5.61734636,178.02,177.99,74.33943982]
[1748380663775,14.5570588,178.03,178.0,21.28979096]
[1748380664100,5.6170588,178.03,178.02,18.64964886]
[1748380664268,5.61639988,178.05,178.02,18.64964886]
[1748380664466,5.61639988,178.05,178.0,39.93943982]
[1748380664870,26.90619084,178.05,178.0,39.93943982]
[1748380665783,21.28979096,178.04,178.0,18.64964886]
[1748380665976,21.28979096,178.03,178.0,18.64964886]
[1748380666174,21.28979096,178.04,178.0,18.64964886]
[1748380667767,5.61703083,178.03,178.0,18.64964886]
[1748380673188,26.90682179,178.03,178.0,18.64964886]
[1748380675914,5.61703083,178.03,178.0,18.64964886]
[1748380681232,5.61703083,178.03,177.99,95.1187]
[1748380681233,13.62398869,178.01,177.99,89.0]
[1748380681514,13.62398869,178.0,177.99,89.0]
[1748380681676,13.62398869,178.0,177.95,89.0]
[1748380681880,21.30405478,177.98,177.95,18.64964886]
[1748380683283,26.92297931,177.97,177.95,18.64964886]
[1748380684597,26.92297931,177.97,177.93,89.0]
[1748380684598,21.30405478,177.96,177.93,89.0]
[1748380684800,21.30405478,177.95,177.93,18.64964886]
[1748380685400,5.61987186,177.94,177.93,18.64964886]
[1748380686731,21.30405478,177.99,177.93,39.95370364]
[1748380686898,21.30405478,177.98,177.95,18.64964886]
[1748380688211,8.92,178.0,177.94,39.95370364]
[1748380688440,5.61829316,177.99,177.94,39.95370364]
[1748380688610,5.61829316,177.99,177.94,74.35370364]
[1748380689513,5.61829316,177.99,177.96,18.64964886]
[1748380691535,5.61829316,177.99,177.96,107.64964886]
[1748380693237,26.92234794,177.99,177.96,107.64964886]
[1748380694733,21.30405478,177.97,177.96,89.0]
[1748380695043,21.30405478,177.98,177.96,89.0]
[1748380696239,5.61892453,177.97,177.96,89.0]
[1748380697144,26.92297931,177.97,177.96,89.0]
[1748380697333,40.97029065,177.97,177.92,123.62457923]
[1748380697527,21.30405478,177.96,177.92,123.62457923]
[1748380697727,21.30405478,177.96,177.92,34.62457923]
[1748380698529,5.61955605,177.95,177.92,18.87422809]
[1748380702231,5.61955605,177.95,177.92,107.87422809]
[1748380706452,5.61955605,177.95,177.92,18.87422809]
[1748380707248,5.61955605,177.95,177.92,40.17828287]
[1748380707544,5.61955605,177.95,177.92,18.87422809]
[1748380707861,5.61955605,177.95,177.93,21.30405478]
[1748380708029,5.61955605,177.95,177.93,13.63311967]
[1748380708426,5.61955605,177.95,177.92,18.87422809]
[1748380708744,5.61955605,177.95,177.93,13.63311967]
[1748380709131,19.66623587,177.97,177.93,13.63311967]
[1748380710055,5.61829316,177.99,177.96,18.64964886]
[1748380713739,26.92029279,177.99,177.96,18.64964886]
[1748380720245,5.61892453,177.97,177.96,18.64964886]
[1748380722848,26.92029279,177.99,177.96,18.64964886]
[1748380732090,19.25014075,177.99,177.96,18.64964886]
[1748380732378,5.61829316,177.99,177.96,18.64964886]
[1748380736960,5.61829316,177.99,177.96,107.64964886]
[1748380740686,13.63184759,177.97,177.96,89.0]
[1748380740984,13.63184759,177.97,177.93,1.6374]
[1748380740985,33.29587365,177.99,177.94,18.64964886]
[1748380741874,13.63184759,177.98,177.94,18.64964886]
[1748380743365,5.61892453,177.97,177.94,18.64964886]
[1748380744367,19.25077212,177.97,177.94,18.64964886]
[1748380746090,33.29808346,177.97,177.93,89.0]
[1748380747793,13.63184759,177.96,177.93,89.0]
[1748380748994,5.61955605,177.95,177.93,89.0]
[1748380749379,13.63184759,177.94,177.91,1.36578017]
[1748380749577,13.63184759,177.93,177.91,1.36578017]
[1748380749776,13.63184759,177.93,177.9,6.1761]
[1748380751180,5.62050359,177.92,177.9,6.1761]
[1748380756594,5.62018771,177.93,177.9,6.1761]
[1748380757901,5.62018771,177.93,177.9,18.64964886]
[1748380758881,5.62018771,177.93,177.9,32.28149645]
[1748380759598,5.62018771,177.93,177.9,121.28149645]
[1748380761583,19.66955152,177.94,177.9,121.28149645]
[1748380761780,19.66955152,177.94,177.9,107.64964886]
[1748380761986,33.30139911,177.94,177.9,107.64964886]
[1748380762613,19.66955152,177.94,177.9,121.28149645]
[1748380762908,33.30139911,177.94,177.9,121.28149645]
[1748380763096,33.30139911,177.94,177.9,107.64964886]
[1748380764913,13.63184759,177.92,177.89,89.0]
[1748380765107,13.63184759,177.91,177.87,107.64964886]
[1748380765693,13.63184759,177.91,177.87,89.0]
[1748380766205,8.9,177.93,177.87,89.0]
[1748380766206,13.63184759,177.9,177.87,89.0]
[1748380766713,13.63184759,177.89,177.86,89.0]
[1748380766954,5.62145145,177.89,177.86,89.0]
[1748380773421,14.05311854,177.9,177.86,102.63184759]
[1748380773906,14.05311854,177.9,177.86,89.0]
[1748380775403,19.674254,177.9,177.86,89.0]
[1748380779809,33.30610159,177.9,177.86,89.0]
[1748380780926,13.63184759,177.89,177.86,89.0]
[1748380783025,5.62176748,177.88,177.86,89.0]
[1748380784019,5.62145145,177.89,177.86,89.0]
[1748380784323,5.62145145,177.89,177.87,32.28149645]
[1748380785022,5.62145145,177.89,177.87,18.64964886]
[1748380786117,5.62145145,177.89,177.87,107.64964886]
[1748380786321,5.62113546,177.9,177.87,107.64964886]
[1748380789608,19.25298305,177.9,177.87,107.64964886]
[1748380790602,19.25298305,177.9,177.87,89.0]
[1748380791220,13.63184759,177.89,177.87,89.0]
[1748380791606,5.62176748,177.88,177.87,89.0]
[1748380792106,5.62176748,177.88,177.85,107.64964886]
[1748380793939,5.62145145,177.89,177.85,121.28149645]
[1748380794146,5.62145145,177.89,177.86,13.63184759]
[1748380794437,5.62145145,177.89,177.85,121.28149645]
[1748380794818,5.62145145,177.89,177.86,13.63184759]
[1748380797833,5.62113546,177.9,177.86,13.63184759]
[1748380800619,19.67397413,177.9,177.86,13.63184759]
[1748380801350,33.30582172,177.9,177.85,121.28149645]
[1748380802466,33.30582172,177.9,177.85,107.64964886]
[1748380805762,33.30582172,177.9,177.85,121.28149645]
[1748380806241,19.67397413,177.9,177.85,121.28149645]
[1748380816976,14.05283867,177.9,177.85,121.28149645]
[1748380818066,19.67397413,177.9,177.85,121.28149645]
[1748380820475,14.05283867,177.9,177.85,121.28149645]
[1748380821677,14.05283867,177.9,177.85,107.64964886]
[1748380824277,19.67397413,177.9,177.85,107.64964886]
[1748380825692,27.68468626,177.9,177.85,107.64964886]
[1748380827161,33.30582172,177.9,177.85,107.64964886]
[1748380827375,13.63184759,177.89,177.85,107.64964886]
[1748380828573,13.63184759,177.88,177.85,107.64964886]
[1748380828787,13.63184759,177.88,177.85,89.0]
[1748380828986,13.63184759,177.87,177.85,89.0]
[1748380829167,5.62239964,177.86,177.85,89.0]
[1748380830559,13.63184759,177.88,177.85,89.0]
[1748380830560,5.62208354,177.87,177.85,89.0]
[1748380831315,19.25393113,177.87,177.85,89.0]
[1748380831978,5.62208354,177.87,177.85,89.0]
[1748380832591,5.62176748,177.88,177.85,89.0]
[1748380833509,5.62176748,177.88,177.85,18.64964886]
[1748380839417,5.62176748,177.88,177.85,107.64964886]
[1748380840417,33.30692768,177.89,177.85,107.64964886]
[1748380843412,13.63184759,177.87,177.85,89.0]
[1748380845302,13.63184759,177.87,177.82,50.99334886]
[1748380845303,19.67839874,177.86,177.83,18.64964886]
[1748380849295,33.31024633,177.86,177.82,89.0]
[1748380849497,33.31024633,177.86,177.81,18.64964886]
[1748380850195,13.63184759,177.84,177.81,89.0]
[1748380850428,13.63184759,177.83,177.81,89.0]
[1748380850932,13.63184759,177.82,177.78,114.29404886]
[1748380851419,5.62398065,177.81,177.78,114.29404886]
[1748380854696,5.62398065,177.81,177.78,127.92589645]
[1748380855309,5.62398065,177.81,177.78,114.29404886]
[1748380860931,5.62398065,177.81,177.78,25.29404886]
[1748380862526,5.62398065,177.81,177.79,18.64964886]
[1748380863431,19.68338953,177.82,177.79,18.64964886]
[1748380864939,19.68338953,177.82,177.79,32.28149645]
[1748380868742,19.68338953,177.82,177.79,18.64964886]
[1748380873756,13.63184759,177.81,177.76,89.0]
[1748380873942,13.63184759,177.8,177.76,89.0]
[1748380874722,5.6246133,177.79,177.76,89.0]
[1748380874952,19.25646089,177.79,177.76,89.0]
[1748380875124,33.31799415,177.79,177.76,89.0]
[1748380878446,14.06153326,177.79,177.76,89.0]
[1748380878651,13.63184759,177.78,177.76,89.0]
[1748380878844,13.63184759,177.78,177.75,107.64964886]
[1748380879864,5.6252461,177.77,177.75,107.64964886]
[1748380884938,13.63184759,177.76,177.72,18.64964886]
[1748380885142,13.63184759,177.76,177.72,107.64964886]
[1748380887455,5.62587904,177.75,177.72,107.64964886]
[1748380891426,5.62587904,177.75,177.72,89.0]
[1748380891628,19.25772663,177.75,177.72,89.0]
[1748380892038,5.62587904,177.75,177.72,89.0]
[1748380893927,13.63184759,177.76,177.72,89.0]
[1748380894937,14.06311526,177.77,177.72,89.0]
[1748380895249,5.62587904,177.75,177.72,89.0]
[1748380895755,5.62587904,177.75,177.71,102.63184759]
[1748380897462,13.63184759,177.76,177.71,102.63184759]
[1748380897751,14.06311526,177.77,177.72,13.63184759]
[1748380898054,27.69496285,177.77,177.72,13.63184759]
[1748380898224,13.63184759,177.76,177.71,102.63184759]
[1748380898868,14.06311526,177.77,177.71,102.63184759]
[1748380899033,5.62587904,177.75,177.71,102.63184759]
[1748380903734,5.62587904,177.75,177.71,89.0]
[1748380905155,33.32242423,177.75,177.7,154.91449645]
[1748380905653,13.63184759,177.73,177.69,18.64964886]
[1748380905853,13.63184759,177.73,177.68,14.72022253]
[1748380905854,5.62714534,177.71,177.68,1.08837494]
[1748380906947,19.69500871,177.71,177.68,1.08837494]
[1748380911147,13.63184759,177.7,177.68,1.08837494]
[1748380911339,13.63184759,177.7,177.51,4.45468591]
[1748380911340,18.64964886,177.67,177.51,4.45468591]
[1748380911542,8.86,177.66,177.53,6.5677]
[1748380911757,8.86,177.66,177.59,18.64964886]
[1748380911758,13.63184759,177.64,177.59,18.64964886]
[1748380912233,13.63184759,177.63,177.57,18.64964886]
[1748380912434,8.86,177.66,177.57,32.28149645]
[1748380912435,13.63184759,177.64,177.57,32.28149645]
[1748380912657,5.62967967,177.63,177.57,32.28149645]
[1748380913255,5.62967967,177.63,177.59,18.64964886]
[1748380914272,21.3866527,177.62,177.56,18.64964886]
[1748380914660,5.6303136,177.61,177.56,18.64964886]
[1748380914862,27.0169663,177.61,177.56,18.64964886]
[1748380916288,21.3866527,177.6,177.56,18.64964886]
[1748380917460,21.3866527,177.61,177.56,18.64964886]
[1748380918449,5.63063063,177.6,177.55,21.3866527]
[1748380920981,21.3866527,177.58,177.52,21.3866527]
[1748380921482,21.3866527,177.58,177.53,21.3866527]
[1748380921657,49.9738599,177.6,177.54,21.3866527]
[1748380921853,35.89728333,177.6,177.54,21.3866527]
[1748380922083,14.51063063,177.6,177.55,21.3866527]
[1748380922452,14.51063063,177.6,177.56,21.3866527]
[1748380922977,8.88,177.6,177.57,21.3866527]
[1748380923847,14.51069139,177.6,177.57,21.3866527]
[1748380928277,14.07372097,177.64,177.57,21.3866527]
[1748380928278,8.88,177.65,177.58,27.9203527]
[1748380928470,21.3866527,177.64,177.6,21.3866527]
[1748380928868,8.88,177.65,177.6,21.3866527]
[1748380929181,30.2666527,177.65,177.6,21.3866527]
[1748380930580,5.62936275,177.64,177.6,21.3866527]
[1748380933567,27.01601545,177.64,177.6,21.3866527]
[1748380935292,27.01601545,177.64,177.59,21.3866527]
[1748380935994,19.31589813,177.64,177.59,13.68653538]
[1748380939279,5.62936275,177.64,177.6,13.68653538]
[1748380941402,5.62936275,177.64,177.58,95.5337]
[1748380941698,19.31589813,177.64,177.59,13.68653538]
[1748380941895,5.62936275,177.64,177.6,13.68653538]
[1748380943787,5.62936275,177.64,177.59,13.68653538]
[1748380945996,5.62936275,177.64,177.59,102.68653538]
[1748380947875,5.62936275,177.64,177.59,89.0]
[1748380948076,5.62936275,177.64,177.6,13.68653538]
[1748380950292,5.62936275,177.64,177.59,102.68653538]
[1748380953207,5.62936275,177.64,177.6,13.68653538]
[1748380956294,5.62936275,177.64,177.59,102.68653538]
[1748380959304,33.38930502,177.64,177.59,89.0]
[1748380961414,33.38930502,177.64,177.59,102.68653538]
[1748380962220,33.38930502,177.64,177.58,20.22023538]
[1748380962407,13.68653538,177.59,177.51,1.5883]
[1748380962608,13.68653538,177.55,177.51,1.5883]
[1748380963102,13.68653538,177.55,177.5,6.338]
[1748380963103,13.68653538,177.53,177.5,6.338]
[1748380963420,13.68653538,177.52,177.47,15.31303538]
[1748380963592,5.63348543,177.51,177.47,15.31303538]
[1748380964622,14.08371359,177.51,177.47,15.31303538]
[1748380964919,16.96265616,177.51,177.47,15.31303538]
[1748380965716,22.59614159,177.51,177.47,15.31303538]
[1748380966026,22.59614159,177.51,177.47,23.03907356]
[1748380969198,22.59614159,177.51,177.47,1.6265]
[1748380973708,44.00871515,177.51,177.47,1.6265]
[1748380974412,21.41257356,177.48,177.45,95.163]
[1748380974617,21.41257356,177.48,177.43,21.41257356]
[1748380975302,21.41257356,177.48,177.43,18.64964886]
[1748380975803,41.13421664,177.47,177.43,18.64964886]
[1748380977501,41.13421664,177.47,177.37,0.86705892]
[1748380977502,47.89541892,177.47,177.37,0.86705892]
[1748380977710,21.41257356,177.44,177.37,0.86705892]
[1748380977913,21.41257356,177.44,177.39,18.64964886]
[1748380978618,47.89541892,177.47,177.39,18.64964886]
[1748380978619,47.89541892,177.47,177.39,40.06222242]
[1748380978930,5.63602547,177.43,177.39,18.64964886]
[1748380979808,19.72608915,177.43,177.39,18.64964886]
[1748380981124,41.13866271,177.43,177.39,18.64964886]
[1748380981507,0.5,177.42,177.39,18.64964886]
[1748380982518,5.63666084,177.41,177.39,18.64964886]
[1748380984436,5.63666084,177.41,177.39,107.64964886]
[1748380994566,5.63666084,177.41,177.39,89.0]
[1748380994732,13.71761163,177.4,177.39,89.0]
[1748380995735,19.3545902,177.4,177.39,89.0]
[1748380995939,5.63697857,177.4,177.39,89.0]
[1748380996145,19.3545902,177.4,177.36,115.0]
[1748380997263,5.63697857,177.4,177.36,115.0]
[1748380997453,19.3545902,177.4,177.36,115.0]
[1748381002976,5.63697857,177.4,177.36,115.0]
[1748381003269,5.63697857,177.4,177.36,128.71761163]
[1748381004963,5.63697857,177.4,177.37,32.36726049]
[1748381006878,19.35395477,177.42,177.37,32.36726049]
[1748381007676,0.5,177.41,177.37,32.36726049]
[1748381007861,5.63697857,177.4,177.39,18.64964886]
[1748381008059,5.63697857,177.4,177.39,107.64964886]
[1748381008260,0.5,177.41,177.39,155.78726049]
[1748381008478,0.5,177.41,177.4,13.71761163]
[1748381014092,0.5,177.41,177.4,102.71761163]
[1748381014269,0.5,177.41,177.4,107.64964886]
[1748381014270,6.13666084,177.41,177.4,107.64964886]
[1748381024372,6.13666084,177.41,177.4,89.0]
[1748381024580,19.85427247,177.41,177.4,89.0]
[1748381024871,33.94592457,177.41,177.36,89.0]
[1748381025188,13.71761163,177.38,177.36,89.0]
[1748381025393,13.71761163,177.38,177.35,107.64964886]
[1748381025596,13.71761163,177.39,177.35,107.64964886]
[1748381025782,13.71761163,177.37,177.25,94.64166684]
[1748381026005,13.71761163,177.35,177.29,13.71761163]
[1748381026195,56.44514652,177.39,177.3,18.64964886]
[1748381026196,13.71761163,177.34,177.3,18.64964886]
[1748381026516,5.63920374,177.33,177.29,39.71761163]
[1748381026713,5.63920374,177.33,177.3,18.64964886]
[1748381027247,5.63920374,177.33,177.23,89.0]
[1748381027248,13.71761163,177.31,177.23,89.0]
[1748381027437,13.71761163,177.31,177.12,0.16]
[1748381027438,26.0,177.29,177.12,0.16]
[1748381027730,13.71761163,177.22,177.15,13.71761163]
[1748381027900,8.9,177.22,177.13,2.9391482]
[1748381028095,21.48804549,177.21,177.14,21.48804549]
[1748381028397,5.64206725,177.24,177.15,26.0]
[1748381028591,27.13011274,177.24,177.18,21.48804549]
[1748381028791,5.64177089,177.25,177.19,21.48804549]
[1748381029007,5.64177089,177.25,177.16,41.4844]
[1748381029203,5.64143199,177.26,177.21,21.48804549]
[1748381029389,5.64015792,177.3,177.22,40.13769435]
[1748381029592,5.64015792,177.3,177.2,34.96]
[1748381029593,0.5,177.24,177.2,34.96]
[1748381029816,0.5,177.24,177.21,40.13769435]
[1748381030015,8.9,177.29,177.23,18.64964886]
[1748381030213,21.48804549,177.28,177.23,18.64964886]
[1748381030405,21.48804549,177.27,177.21,40.13769435]
[1748381031107,21.48804549,177.27,177.23,18.64964886]
[1748381031306,5.64113537,177.27,177.23,18.64964886]
[1748381031614,2.88416999,177.31,177.22,21.48804549]
[1748381031916,30.38804549,177.3,177.25,18.64964886]
[1748381032212,14.54015792,177.3,177.25,18.64964886]
[1748381032522,21.48804549,177.29,177.25,18.64964886]
[1748381032813,14.54015792,177.3,177.25,18.64964886]
[1748381032814,8.9,177.3,177.26,21.48804549]
[1748381032998,8.9,177.3,177.27,18.64964886]
[1748381033206,5.63994343,177.31,177.27,18.64964886]
[1748381033395,27.12798892,177.31,177.27,18.64964886]
[1748381033819,21.48804549,177.3,177.26,18.64964886]
[1748381034009,21.48804549,177.3,177.25,35.02]
[1748381034215,21.48804549,177.3,177.25,56.50804549]
[1748381034923,5.64047605,177.29,177.26,18.64964886]
[1748381036293,5.63983982,177.31,177.26,44.64964886]
[1748381036498,5.63983982,177.31,177.29,18.64964886]
[1748381037113,27.12788531,177.31,177.26,18.64964886]
[1748381037998,5.63983982,177.31,177.26,40.13769435]
[1748381038409,21.48804549,177.29,177.26,18.64964886]
[1748381039093,21.48804549,177.3,177.26,18.64964886]
[1748381039312,21.48804549,177.3,177.25,21.48804549]
[1748381039904,21.48804549,177.29,177.24,66.13769435]
[1748381040116,21.48804549,177.29,177.25,18.64964886]
[1748381040501,5.64079422,177.28,177.25,18.64964886]
[1748381041319,5.64079422,177.28,177.25,40.13769435]
[1748381042197,5.64015792,177.3,177.27,18.64964886]
[1748381043726,5.64015792,177.3,177.27,107.64964886]
[1748381044512,19.73832618,177.32,177.27,89.0]
[1748381044718,41.22637167,177.32,177.27,110.48804549]
[1748381044913,19.73832618,177.32,177.27,110.48804549]
[1748381045110,21.48804549,177.29,177.17,5.64429643]
[1748381045428,47.93593502,177.32,177.24,40.13769435]
[1748381045429,19.73832618,177.32,177.24,40.13769435]
[1748381045605,21.48804549,177.3,177.24,40.13769435]
[1748381045813,21.48804549,177.31,177.24,75.11769435]
[1748381046720,5.64015792,177.3,177.24,75.11769435]
[1748381046901,27.12820341,177.3,177.24,75.11769435]
[1748381047427,27.12820341,177.3,177.26,18.64964886]
[1748381047428,5.64015792,177.3,177.26,18.64964886]
[1748381047925,5.64015792,177.3,177.27,21.48804549]
[1748381048727,21.48804549,177.32,177.28,21.48804549]
[1748381048728,5.63952176,177.32,177.28,21.48804549]
[1748381050103,5.63952176,177.32,177.26,95.0222]
[1748381050307,5.63952176,177.32,177.28,21.48804549]
[1748381050504,21.48804549,177.29,177.26,95.0222]
[1748381050760,5.64079422,177.28,177.26,95.0222]
[1748381050914,5.64079422,177.28,177.26,24.67184886]
[1748381052615,5.64079422,177.28,177.25,89.0]
[1748381052933,5.64143066,177.26,177.25,89.0]
[1748381053311,5.64143066,177.26,177.25,107.64964886]
[1748381053512,5.64079422,177.28,177.25,107.64964886]
[1748381054538,21.48804549,177.27,177.23,18.64964886]
[1748381055323,27.12947615,177.26,177.23,18.64964886]
[1748381057828,27.13011274,177.24,177.21,18.64964886]
[1748381058028,27.13011274,177.24,177.21,53.70964886]
[1748381058216,27.13011274,177.24,177.21,18.64964886]
[1748381058743,27.13011274,177.24,177.2,35.04]
[1748381060019,27.13011274,177.24,177.2,56.52804549]
[1748381060227,5.64206725,177.24,177.2,21.48804549]
[1748381060435,5.64206725,177.24,177.2,56.50804549]
[1748381061720,27.13011274,177.24,177.2,35.02]
[1748381061919,5.64206725,177.24,177.2,56.50804549]
[1748381062121,41.23528087,177.24,177.19,18.64964886]
[1748381062342,41.23528087,177.24,177.19,75.15769435]
[1748381062837,19.74723538,177.24,177.19,75.15769435]
[1748381063027,41.23528087,177.24,177.19,75.15769435]
[1748381063416,47.95757164,177.24,177.12,146.86]
[1748381063616,21.48804549,177.18,177.12,0.16]
[1748381063935,41.2408532,177.19,177.14,18.64964886]
[1748381064112,41.2408532,177.19,177.14,40.13769435]
[1748381064315,19.75280771,177.19,177.15,21.48804549]
[1748381064518,5.64365934,177.19,177.17,21.48804549]
[1748381064719,5.64365934,177.19,177.18,21.48804549]
[1748381065122,5.64365934,177.19,177.17,21.48804549]
[1748381065522,5.64365934,177.19,177.14,53.78964886]
[1748381065839,5.6430224,177.21,177.14,53.78964886]
[1748381066044,5.6430224,177.21,177.17,21.48804549]
[1748381067258,19.7505784,177.21,177.14,53.78964886]
[1748381067543,19.7505784,177.21,177.18,21.48804549]
[1748381068134,14.107556,177.21,177.18,21.48804549]
[1748381068520,14.107556,177.21,177.17,21.48804549]
[1748381068835,14.107556,177.21,177.14,53.78964886]
[1748381069346,14.107556,177.21,177.17,21.48804549]
[1748381069930,14.107556,177.21,177.16,21.48804549]
[1748381070124,19.7505784,177.21,177.16,89.0]
[1748381070442,47.96569041,177.21,177.12,18.80964886]
[1748381070843,21.48804549,177.17,177.12,18.80964886]
[1748381071146,9.78,177.19,177.12,18.80964886]
[1748381071447,9.78,177.19,177.13,21.48804549]
[1748381072255,41.24196804,177.18,177.13,21.48804549]
[1748381072423,19.75392255,177.18,177.13,21.48804549]
[1748381072624,41.24196804,177.18,177.13,21.48804549]
[1748381072935,41.24196804,177.18,177.12,40.29769435]
[1748381073737,41.24196804,177.18,177.12,0.16]
[1748381073935,41.24196804,177.18,177.12,21.64804549]
[1748381074152,41.24196804,177.18,177.12,0.16]
[1748381074353,21.48804549,177.17,177.12,0.16]
[1748381074654,21.48804549,177.16,177.12,0.16]
[1748381075046,21.48804549,177.17,177.12,21.64804549]
[1748381075430,5.64461503,177.16,177.12,21.64804549]
[1748381075626,5.64461503,177.16,177.12,0.16]
[1748381075829,5.64461503,177.16,177.12,21.64804549]
[1748381076943,21.48804549,177.16,177.12,0.16]
[1748381077134,19.75392255,177.18,177.12,0.16]
[1748381077550,21.48804549,177.15,177.12,0.16]
[1748381078048,19.75392255,177.18,177.12,0.16]
[1748381078256,5.64493367,177.15,177.12,0.16]
[1748381078828,5.64493367,177.15,177.12,21.64804549]
[1748381079029,14.10994468,177.18,177.13,40.13769435]
[1748381079030,5.64429643,177.17,177.13,40.13769435]
[1748381079250,19.75503752,177.17,177.12,0.16]
[1748381079656,21.48804549,177.16,177.12,0.16]
[1748381080230,14.11074109,177.17,177.12,0.16]
[1748381080448,21.48804549,177.16,177.12,0.16]
[1748381080859,14.11074109,177.17,177.12,0.16]
[1748381080860,35.59878658,177.17,177.12,0.16]
[1748381081046,21.48804549,177.16,177.12,0.16]
[1748381081247,21.48804549,177.14,177.12,0.16]
[1748381082454,5.64557104,177.13,177.12,0.16]
[1748381084130,27.13361653,177.13,177.12,0.16]
[1748381085157,5.64557104,177.13,177.12,0.16]
[1748381085452,6.2913,177.12,177.11,4.09200531]
[1748381085660,27.85346157,177.12,177.11,4.09200531]
[1748381085867,27.85346157,177.12,176.91,6.61681343]
[1748381085868,0.14216157,177.09,176.91,6.61681343]
[1748381086032,21.48804549,176.99,176.93,21.48804549]
[1748381086232,21.48804549,177.01,176.92,26.0]
[1748381086431,291.0,176.99,176.95,21.48804549]
[1748381086780,296.65020967,176.99,176.96,18.64964886]
[1748381086936,286.65020967,176.99,176.88,14.13378139]
[1748381087141,291.0,176.99,176.89,18.64964886]
[1748381087355,291.0,176.99,176.88,14.13378139]
[1748381087541,291.0,176.99,176.94,18.64964886]